fUST/lending_fUST_20250522
["ID","MTS","AMOUNT","RATE_DAILY","PERIOD"]
[361992194,1747926661109,-430.0,0.00022739,2]
[361992195,1747926661119,-430.0,0.00022739,2]
[361992196,1747926661129,-857.92,0.00022739,2]
[361992197,1747926661139,-430.0,0.00022739,2]
[361992198,1747926661149,-430.0,0.00022739,2]
[361992199,1747926661159,-8531.82,0.00022739,2]
[361992205,1747926661299,-444.08,0.00022739,2]
[361992207,1747926661310,-1573.64,0.00022739,2]
[361992209,1747926661321,-2598.72,0.00022739,2]
[361992211,1747926661332,-214.63467896,0.00022739,2]
[361992213,1747926661342,-466.93,0.00022739,2]
[361992216,1747926661361,-482.75,0.00022739,2]
[361992218,1747926661377,-1341.05,0.00022739,2]
[361992220,1747926661388,-697.24,0.00022739,2]
[361992223,1747926661400,-1278.1,0.00022739,2]
[361992225,1747926661411,-874.86,0.00022739,2]
[361992227,1747926661424,-1345.18,0.00022739,2]
[361992229,1747926661438,-1197.73,0.00022739,2]
[361992232,1747926661448,-430.0,0.00022739,2]
[361992234,1747926661459,-1961.84,0.00022739,2]
[361992236,1747926661470,-559.61805242,0.00022739,2]
[361992238,1747926661480,-1982.22,0.00022739,2]
[361992240,1747926661490,-430.0,0.00022739,2]
[361992242,1747926661501,-269.45630352,0.00022739,2]
[361992244,1747926661512,-430.0,0.00022739,2]
[361992246,1747926661522,-430.0,0.00022739,2]
[361992248,1747926661533,-588.92,0.00022739,2]
[361992250,1747926661543,-3225.77,0.00022739,2]
[361992252,1747926661554,-1245.97,0.00022739,2]
[361992254,1747926661564,-603.83,0.00022739,2]
[361992256,1747926661575,-518.59,0.00022739,2]
[361992258,1747926661585,-1084.72,0.00022739,2]
[361992260,1747926661595,-430.0,0.00022739,2]
[361992263,1747926661606,-450.0,0.00022739,2]
[361992265,1747926661617,-608.2,0.00022739,2]
[361992267,1747926661627,-5501.76,0.00022739,2]
[361992269,1747926661638,-1049.16,0.00022739,2]
[361992271,1747926661648,-430.0,0.00022739,2]
[361992273,1747926661658,-381.58972257,0.00022739,2]
[361992275,1747926661669,-430.0,0.00022739,2]
[361992277,1747926661680,-470.0,0.00022739,2]
[361992279,1747926661690,-430.0,0.00022739,2]
[361992281,1747926661700,-559.31,0.00022739,2]
[361992284,1747926661711,-450.0,0.00022739,2]
[361992286,1747926661722,-314.01,0.00022739,2]
[361992288,1747926661732,-430.0,0.00022739,2]
[361992289,1747926661742,-450.0,0.00022739,2]
[361992292,1747926661753,-984.02,0.00022739,2]
[361992294,1747926661764,-2036.45,0.00022739,2]
[361992296,1747926661775,-1241.28,0.00022739,2]
[361992298,1747926661785,-430.0,0.00022739,2]
[361992300,1747926661796,-470.0,0.00022739,2]
[361992302,1747926661805,-445.96,0.00022739,2]
[361992304,1747926661816,-2919.95,0.00022739,2]
[361992306,1747926661826,-868.53,0.00022739,2]
[361992308,1747926661837,-430.0,0.00022739,2]
[361992310,1747926661847,-905.89,0.00022739,2]
[361992312,1747926661857,-430.0,0.00022739,2]
[361992314,1747926661867,-420.0,0.00022739,2]
[361992316,1747926661877,-2368.71,0.00022739,2]
[361992318,1747926661888,-953.67,0.00022739,2]
[361992320,1747926661898,-430.0,0.00022739,2]
[361992322,1747926661908,-430.0,0.00022739,2]
[361992325,1747926661920,-770.83,0.00022739,2]
[361992326,1747926661930,-1055.49,0.00022739,2]
[361992327,1747926661941,-1073.35,0.00022739,2]
[361992329,1747926661951,-2718.41,0.00022739,2]
[361992331,1747926661963,-430.0,0.00022739,2]
[361992332,1747926661973,-1453.44,0.00022739,2]
[361992334,1747926661984,-2721.44,0.00022739,2]
[361992336,1747926661994,-1170.0,0.00022739,2]
[361992338,1747926662005,-430.0,0.00022739,2]
[361992340,1747926662015,-430.0,0.00022739,2]
[361992342,1747926662025,-430.0,0.00022739,2]
[361992344,1747926662036,-1001.1,0.00022739,2]
[361992346,1747926662047,-430.0,0.00022739,2]
[361992348,1747926662057,-1024.12,0.00022739,2]
[361992350,1747926662067,-511.14,0.00022739,2]
[361992352,1747926662077,-2869.25,0.00022739,2]
[361992354,1747926662087,-430.0,0.00022739,2]
[361992356,1747926662097,-430.0,0.00022739,2]
[361992358,1747926662108,-1084.85,0.00022739,2]
[361992360,1747926662118,-430.0,0.00022739,2]
[361992361,1747926662128,-1629.5,0.00022739,2]
[361992362,1747926662138,-450.0,0.00022739,2]
[361992363,1747926662148,-1727.46,0.00022739,2]
[361992364,1747926662158,-1138.5549493,0.0002274,2]
[361992365,1747926662168,-800.0,0.00022741,2]
[361992366,1747926662180,-7382.0165825,0.00022767,2]
[361992367,1747926662190,-5000.0,0.00022768,2]
[361992368,1747926662200,-500.0,0.00022773,2]
[361992369,1747926662210,-167.049659,0.0002283,7]
[361992370,1747926662220,-326.659907,0.0002283,7]
[361992371,1747926662230,-167.049659,0.0002283,7]
[361992372,1747926662240,-326.659907,0.0002283,7]
[361992373,1747926662250,-345.408946,0.0002283,7]
[361992374,1747926662260,-345.408946,0.0002283,7]
[361992375,1747926662270,-151.0,0.00022831,7]
[361992376,1747926662281,-4939.31440167,0.00022831,8]
[361992377,1747926662290,-532.315608,0.00022973,7]
[361992378,1747926662300,-532.315617,0.00022973,7]
[361992379,1747926662310,-802.36599431,0.0002298,2]
[361992380,1747926662321,-160.0,0.00022999,2]
[361992381,1747926662332,-504.33144106,0.00023,30]
[361992382,1747926662342,-500.0,0.00023,30]
[361992383,1747926662352,-500.0,0.00023,30]
[361992384,1747926662361,-500.0,0.00023,30]
[361992385,1747926662371,-500.0,0.00023,30]
[361992386,1747926662381,-500.0,0.00023,30]
[361992387,1747926662392,-580.1745725,0.00023,30]
[361992388,1747926662402,-1000.0,0.00023,23]
[361992389,1747926662412,-10000.0,0.00023,5]
[361992390,1747926662423,-450.24252333,0.00023,2]
[361992391,1747926662433,-57123.0,0.00023,3]
[361992392,1747926662443,-160.0,0.00023,3]
[361992393,1747926662452,-160.0,0.00023,3]
[361992394,1747926662461,-151.0,0.00023,7]
[361992395,1747926662471,-160.0,0.00023,3]
[361992396,1747926662480,-345.590434,0.00023,7]
[361992397,1747926662490,-345.590438,0.00023,7]
[361992398,1747926662501,-1000.362802,0.00023,7]
[361992399,1747926662511,-1000.362802,0.00023,7]
[361992400,1747926662520,-167.049659,0.00023,7]
[361992401,1747926662530,-326.659907,0.00023,7]
[361992402,1747926662539,-167.049663,0.00023,7]
[361992403,1747926662549,-326.659905,0.00023,7]
[361992404,1747926662559,-345.408946,0.00023,7]
[361992405,1747926662568,-345.408936,0.00023,7]
[361992406,1747926662578,-160.0,0.00023,3]
[361992407,1747926662587,-160.0,0.00023,3]
[361992408,1747926662596,-422.78357425,0.00023,3]
[361992409,1747926662606,-160.0,0.00023,3]
[361992410,1747926662615,-800.0,0.00023004,2]
[361992411,1747926662624,-200.0,0.00023012,2]
[361992412,1747926662634,-151.0,0.00023013,7]
[361992413,1747926662643,-430.0,0.00023013,2]
[361992414,1747926662653,-430.0,0.00023013,2]
[361992415,1747926662663,-393.59,0.00023013,2]
[361992416,1747926662674,-430.0,0.00023013,2]
[361992417,1747926662683,-609.44,0.00023013,2]
[361992418,1747926662693,-412.60081372,0.00023013,2]
[361992419,1747926662703,-430.0,0.00023013,2]
[361992420,1747926662713,-316.09857775,0.00023013,2]
[361992421,1747926662722,-430.0,0.00023013,2]
[361992422,1747926662731,-170.0,0.00023013,2]
[361992423,1747926662741,-430.0,0.00023013,2]
[361992424,1747926662750,-430.0,0.00023013,2]
[361992425,1747926662760,-170.0,0.00023013,2]
[361992426,1747926662770,-170.0,0.00023013,2]
[361992427,1747926662779,-573.04,0.00023013,2]
[361992428,1747926662789,-406.82765025,0.00023013,2]
[361992429,1747926662799,-430.0,0.00023013,2]
[361992430,1747926662808,-1103.5825733,0.00023013,2]
[361992431,1747926662817,-510.18,0.00023013,2]
[361992432,1747926662828,-430.0,0.00023013,2]
[361992433,1747926662839,-213.57146806,0.00023013,2]
[361992434,1747926662848,-430.0,0.00023013,2]
[361992435,1747926662858,-430.0,0.00023013,2]
[361992436,1747926662868,-430.0,0.00023013,2]
[361992437,1747926662878,-160.15,0.00023013,2]
[361992438,1747926662888,-430.0,0.00023013,2]
[361992439,1747926662899,-430.0,0.00023013,2]
[361992440,1747926662909,-430.0,0.00023013,2]
[361992441,1747926662919,-430.0,0.00023013,2]
[361992442,1747926662930,-430.0,0.00023013,2]
[361992443,1747926662940,-430.0,0.00023013,2]
[361992444,1747926662949,-430.0,0.00023013,2]
[361992445,1747926662958,-450.0,0.00023013,2]
[361992446,1747926662968,-430.0,0.00023013,2]
[361992447,1747926662977,-260.0,0.00023013,2]
[361992448,1747926662986,-403.95401713,0.00023013,2]
[361992449,1747926662996,-414.66683958,0.00023013,2]
[361992450,1747926663005,-1204.87,0.00023013,2]
[361992451,1747926663014,-701.17,0.00023013,2]
[361992452,1747926663023,-437.85,0.00023013,2]
[361992453,1747926663034,-473.75,0.00023013,2]
[361992454,1747926663044,-430.0,0.00023013,2]
[361992455,1747926663054,-1269.29,0.00023013,2]
[361992456,1747926663063,-430.0,0.00023013,2]
[361992457,1747926663074,-430.0,0.00023013,2]
[361992458,1747926663084,-430.0,0.00023013,2]
[361992459,1747926663094,-430.0,0.00023013,2]
[361992460,1747926663105,-430.0,0.00023013,2]
[361992461,1747926663116,-430.0,0.00023013,2]
[361992462,1747926663125,-430.0,0.00023013,2]
[361992463,1747926663135,-1336.32,0.00023013,2]
[361992464,1747926663145,-430.0,0.00023013,2]
[361992465,1747926663155,-430.0,0.00023013,2]
[361992466,1747926663165,-430.0,0.00023013,2]
[361992467,1747926663175,-2727.22,0.00023013,2]
[361992468,1747926663185,-520.87,0.00023013,2]
[361992469,1747926663195,-430.0,0.00023013,2]
[361992470,1747926663206,-489.46111951,0.00023013,2]
[361992471,1747926663215,-715.26,0.00023013,2]
[361992472,1747926663225,-430.0,0.00023013,2]
[361992473,1747926663235,-430.0,0.00023013,2]
[361992474,1747926663245,-3852.36,0.00023013,2]
[361992475,1747926663255,-1218.87,0.00023013,2]
[361992476,1747926663265,-1457.88,0.00023013,2]
[361992477,1747926663275,-430.0,0.00023013,2]
[361992478,1747926663285,-1348.45,0.00023013,2]
[361992479,1747926663296,-430.0,0.00023013,2]
[361992480,1747926663306,-2262.35,0.00023013,2]
[361992481,1747926663315,-430.0,0.00023013,2]
[361992482,1747926663328,-787.26,0.00023013,2]
[361992483,1747926663339,-6829.31,0.00023013,2]
[361992484,1747926663349,-420.0,0.00023013,2]
[361992485,1747926663359,-430.0,0.00023013,2]
[361992486,1747926663370,-857.92,0.00023013,2]
[361992487,1747926663380,-430.0,0.00023013,2]
[361992488,1747926663390,-430.0,0.00023013,2]
[361992489,1747926663400,-8531.82,0.00023013,2]
[361992490,1747926663410,-1573.64,0.00023013,2]
[361992492,1747926663420,-2598.72,0.00023013,2]
[361992494,1747926663430,-466.93,0.00023013,2]
[361992496,1747926663440,-482.75,0.00023013,2]
[361992497,1747926663450,-697.24,0.00023013,2]
[361992499,1747926663460,-1341.05,0.00023013,2]
[361992502,1747926663471,-1278.1,0.00023013,2]
[361992504,1747926663482,-874.86,0.00023013,2]
[361992505,1747926663493,-1345.18,0.00023013,2]
[361992506,1747926663503,-1197.73,0.00023013,2]
[361992507,1747926663513,-430.0,0.00023013,2]
[361992508,1747926663523,-1961.84,0.00023013,2]
[361992509,1747926663533,-1982.22,0.00023013,2]
[361992510,1747926663542,-430.0,0.00023013,2]
[361992511,1747926663552,-430.0,0.00023013,2]
[361992512,1747926663563,-430.0,0.00023013,2]
[361992513,1747926663573,-588.92,0.00023013,2]
[361992514,1747926663583,-3225.77,0.00023013,2]
[361992515,1747926663593,-603.83,0.00023013,2]
[361992516,1747926663604,-1245.97,0.00023013,2]
[361992517,1747926663614,-518.59,0.00023013,2]
[361992518,1747926663624,-1084.72,0.00023013,2]
[361992519,1747926663634,-430.0,0.00023013,2]
[361992520,1747926663645,-608.2,0.00023013,2]
[361992522,1747926663655,-5501.76,0.00023013,2]
[361992524,1747926663664,-1049.16,0.00023013,2]
[361992526,1747926663676,-341.25266767,0.00023013,2]
[361992528,1747926663686,-430.0,0.00023013,2]
[361992530,1747926663697,-430.0,0.00023013,2]
[361992531,1747926663707,-559.31,0.00023013,2]
[361992532,1747926663717,-430.0,0.00023013,2]
[361992534,1747926663727,-984.02,0.00023013,2]
[361992536,1747926663737,-2036.45,0.00023013,2]
[361992537,1747926663747,-1241.28,0.00023013,2]
[361992538,1747926663757,-430.0,0.00023013,2]
[361992539,1747926663767,-445.96,0.00023013,2]
[361992540,1747926663777,-2919.95,0.00023013,2]
[361992541,1747926663789,-868.53,0.00023013,2]
[361992542,1747926663800,-430.0,0.00023013,2]
[361992543,1747926663812,-905.89,0.00023013,2]
[361992544,1747926663824,-430.0,0.00023013,2]
[361992545,1747926663835,-2368.71,0.00023013,2]
[361992546,1747926663846,-953.67,0.00023013,2]
[361992547,1747926663857,-430.0,0.00023013,2]
[361992548,1747926663868,-430.0,0.00023013,2]
[361992549,1747926663878,-770.83,0.00023013,2]
[361992550,1747926663890,-1055.49,0.00023013,2]
[361992551,1747926663900,-1073.35,0.00023013,2]
[361992552,1747926663911,-2718.41,0.00023013,2]
[361992553,1747926663925,-430.0,0.00023013,2]
[361992554,1747926663936,-1453.44,0.00023013,2]
[361992555,1747926663947,-2721.44,0.00023013,2]
[361992556,1747926663959,-1170.0,0.00023013,2]
[361992557,1747926663970,-430.0,0.00023013,2]
[361992558,1747926663981,-181.3,0.00023013,2]
[361992559,1747926663991,-430.0,0.00023013,2]
[361992560,1747926664002,-1001.1,0.00023013,2]
[361992561,1747926664013,-430.0,0.00023013,2]
[361992562,1747926664024,-1024.12,0.00023013,2]
[361992563,1747926664034,-511.14,0.00023013,2]
[361992564,1747926664044,-2869.25,0.00023013,2]
[361992565,1747926664054,-450.0,0.00023013,2]
[361992566,1747926664064,-430.0,0.00023013,2]
[361992567,1747926664075,-1084.85,0.00023013,2]
[361992568,1747926664085,-430.0,0.00023013,2]
[361992569,1747926664095,-1629.5,0.00023013,2]
[361992570,1747926664106,-1727.46,0.00023013,2]
[361992571,1747926664116,-800.0,0.00023014,2]
[361992572,1747926664127,-302.70903956,0.00023021,2]
[361992573,1747926664137,-1001.90703479,0.00023021,2]
[361992574,1747926664148,-415.48962466,0.00023021,2]
[361992575,1747926664158,-161.817687,0.0002303,7]
[361992581,1747926664295,-7382.0165825,0.00023033,2]
[361992583,1747926664307,-4939.31440167,0.00023038,8]
[361992585,1747926664318,-161.817687,0.0002304,30]
[361992587,1747926664333,-600.0,0.0002304,2]
[361992589,1747926664344,-1500.0,0.00023068,2]
[361992592,1747926664355,-515.28709706,0.00023068,2]
[361992594,1747926664366,-1249.0,0.00023121,2]
[361992596,1747926664376,-159.05485592,0.00023151,2]
[361992597,1747926664386,-176.0716068,0.00023178,2]
[361992599,1747926664396,-176.0716068,0.00023178,2]
[361992601,1747926664407,-176.0716068,0.00023178,2]
[361992603,1747926664418,-176.0716068,0.00023178,2]
[361992605,1747926664431,-350.3581831,0.00023178,2]
[361992607,1747926664441,-500.0,0.00023188,2]
[361992608,1747926664452,-304.71237681,0.00023188,2]
[361992609,1747926664461,-500.0,0.00023188,2]
[361992610,1747926664471,-800.0,0.00023209,2]
[361992611,1747926664482,-800.0,0.00023213,2]
[361992612,1747926664492,-823.0,0.00023218,2]
[361992613,1747926664502,-823.0,0.00023219,2]
[361992614,1747926664512,-4939.31440167,0.00023245,8]
[361992616,1747926664522,-207.898,0.00023257,2]
[361992617,1747926664532,-960.0,0.00023257,2]
[361992619,1747926664542,-2234.0,0.00023257,2]
[361992621,1747926664553,-711.797,0.00023257,2]
[361992623,1747926664562,-404.0,0.00023257,2]
[361992624,1747926664572,-187.0,0.0002326,120]
[361992626,1747926664582,-1500.0,0.00023268,2]
[361992627,1747926664592,-1000.0,0.00023268,2]
[361992628,1747926664603,-1500.0,0.00023268,2]
[361992629,1747926664614,-1504.91145599,0.00023268,2]
[361992630,1747926664625,-187.0,0.0002327,120]
[361992631,1747926664635,-187.0,0.0002328,120]
[361992632,1747926664645,-606.19955931,0.0002328,2]
[361992633,1747926664656,-800.0,0.00023286,2]
[361992634,1747926664666,-430.0,0.00023287,2]
[361992635,1747926664677,-430.0,0.00023287,2]
[361992636,1747926664687,-430.0,0.00023287,2]
[361992637,1747926664697,-609.44,0.00023287,2]
[361992638,1747926664707,-430.0,0.00023287,2]
[361992639,1747926664716,-430.0,0.00023287,2]
[361992640,1747926664726,-573.04,0.00023287,2]
[361992641,1747926664735,-430.0,0.00023287,2]
[361992642,1747926664745,-510.18,0.00023287,2]
[361992643,1747926664756,-430.0,0.00023287,2]
[361992644,1747926664765,-430.0,0.00023287,2]
[361992645,1747926664776,-471.54,0.00023287,2]
[361992646,1747926664786,-430.0,0.00023287,2]
[361992647,1747926664797,-430.0,0.00023287,2]
[361992648,1747926664808,-430.0,0.00023287,2]
[361992649,1747926664818,-430.0,0.00023287,2]
[361992650,1747926664829,-430.0,0.00023287,2]
[361992651,1747926664839,-430.0,0.00023287,2]
[361992652,1747926664849,-430.0,0.00023287,2]
[361992653,1747926664858,-430.0,0.00023287,2]
[361992654,1747926664869,-1204.87,0.00023287,2]
[361992655,1747926664879,-701.17,0.00023287,2]
[361992656,1747926664889,-437.85,0.00023287,2]
[361992657,1747926664898,-473.75,0.00023287,2]
[361992658,1747926664908,-430.0,0.00023287,2]
[361992659,1747926664918,-1269.29,0.00023287,2]
[361992660,1747926664929,-472.37242212,0.00023287,2]
[361992661,1747926664939,-430.0,0.00023287,2]
[361992662,1747926664949,-430.0,0.00023287,2]
[361992663,1747926664959,-430.0,0.00023287,2]
[361992664,1747926664969,-430.0,0.00023287,2]
[361992665,1747926664979,-430.0,0.00023287,2]
[361992666,1747926664991,-430.0,0.00023287,2]
[361992667,1747926665001,-1336.32,0.00023287,2]
[361992668,1747926665011,-430.0,0.00023287,2]
[361992669,1747926665021,-450.0,0.00023287,2]
[361992670,1747926665031,-430.0,0.00023287,2]
[361992671,1747926665041,-2727.22,0.00023287,2]
[361992672,1747926665051,-520.87,0.00023287,2]
[361992673,1747926665060,-430.0,0.00023287,2]
[361992674,1747926665072,-715.26,0.00023287,2]
[361992675,1747926665083,-430.0,0.00023287,2]
[361992676,1747926665094,-315.24702105,0.00023287,2]
[361992677,1747926665104,-3852.36,0.00023287,2]
[361992678,1747926665114,-1218.87,0.00023287,2]
[361992679,1747926665124,-1457.88,0.00023287,2]
[361992680,1747926665133,-430.0,0.00023287,2]
[361992681,1747926665142,-1348.45,0.00023287,2]
[361992682,1747926665152,-430.0,0.00023287,2]
[361992683,1747926665163,-2262.35,0.00023287,2]
[361992684,1747926665173,-430.0,0.00023287,2]
[361992685,1747926665182,-787.26,0.00023287,2]
[361992686,1747926665192,-6829.31,0.00023287,2]
[361992687,1747926665202,-430.0,0.00023287,2]
[361992688,1747926665212,-857.92,0.00023287,2]
[361992689,1747926665222,-3691.45,0.00023287,2]
[361992690,1747926665232,-430.0,0.00023287,2]
[361992691,1747926665241,-430.0,0.00023287,2]
[361992692,1747926665251,-8531.82,0.00023287,2]
[361992693,1747926665260,-1573.64,0.00023287,2]
[361992694,1747926665270,-2598.72,0.00023287,2]
[361992695,1747926665279,-466.93,0.00023287,2]
[361992696,1747926665289,-482.75,0.00023287,2]
[361992697,1747926665298,-697.24,0.00023287,2]
[361992698,1747926665308,-1341.05,0.00023287,2]
[361992699,1747926665318,-1278.1,0.00023287,2]
[361992700,1747926665329,-874.86,0.00023287,2]
[361992701,1747926665338,-1345.18,0.00023287,2]
[361992702,1747926665348,-1197.73,0.00023287,2]
[361992703,1747926665359,-430.0,0.00023287,2]
[361992705,1747926665369,-1961.84,0.00023287,2]
[361992707,1747926665378,-1982.22,0.00023287,2]
[361992709,1747926665387,-430.0,0.00023287,2]
[361992711,1747926665398,-430.0,0.00023287,2]
[361992713,1747926665408,-430.0,0.00023287,2]
[361992715,1747926665417,-588.92,0.00023287,2]
[361992717,1747926665428,-3225.77,0.00023287,2]
[361992719,1747926665437,-603.83,0.00023287,2]
[361992721,1747926665447,-1245.97,0.00023287,2]
[361992723,1747926665456,-518.59,0.00023287,2]
[361992724,1747926665465,-1084.72,0.00023287,2]
[361992725,1747926665475,-430.0,0.00023287,2]
[361992727,1747926665484,-608.2,0.00023287,2]
[361992728,1747926665493,-5501.76,0.00023287,2]
[361992729,1747926665502,-1049.16,0.00023287,2]
[361992730,1747926665512,-430.0,0.00023287,2]
[361992731,1747926665522,-528.79,0.00023287,2]
[361992732,1747926665531,-559.31,0.00023287,2]
[361992733,1747926665540,-430.0,0.00023287,2]
[361992734,1747926665550,-984.02,0.00023287,2]
[361992735,1747926665559,-2036.45,0.00023287,2]
[361992736,1747926665569,-1241.28,0.00023287,2]
[361992737,1747926665578,-430.0,0.00023287,2]
[361992738,1747926665588,-445.96,0.00023287,2]
[361992739,1747926665597,-2919.95,0.00023287,2]
[361992740,1747926665607,-868.53,0.00023287,2]
[361992741,1747926665616,-430.0,0.00023287,2]
[361992742,1747926665626,-492.65667206,0.00023287,2]
[361992743,1747926665635,-905.89,0.00023287,2]
[361992744,1747926665645,-2368.71,0.00023287,2]
[361992745,1747926665655,-953.67,0.00023287,2]
[361992746,1747926665665,-430.0,0.00023287,2]
[361992747,1747926665674,-430.0,0.00023287,2]
[361992748,1747926665683,-770.83,0.00023287,2]
[361992749,1747926665693,-1055.49,0.00023287,2]
[361992750,1747926665702,-1073.35,0.00023287,2]
[361992751,1747926665711,-2718.41,0.00023287,2]
[361992752,1747926665721,-430.0,0.00023287,2]
[361992753,1747926665731,-1453.44,0.00023287,2]
[361992754,1747926665742,-2721.44,0.00023287,2]
[361992755,1747926665751,-1170.0,0.00023287,2]
[361992757,1747926665761,-316.22,0.00023287,2]
[361992758,1747926665772,-430.0,0.00023287,2]
[361992759,1747926665782,-1001.1,0.00023287,2]
[361992760,1747926665791,-430.0,0.00023287,2]
[361992761,1747926665801,-1024.12,0.00023287,2]
[361992762,1747926665810,-511.14,0.00023287,2]
[361992763,1747926665820,-2869.25,0.00023287,2]
[361992764,1747926665830,-430.0,0.00023287,2]
[361992765,1747926665840,-1084.85,0.00023287,2]
[361992766,1747926665850,-430.0,0.00023287,2]
[361992767,1747926665860,-1629.5,0.00023287,2]
[361992768,1747926665870,-1727.46,0.00023287,2]
[361992769,1747926665880,-159.05485592,0.00023288,2]
[361992770,1747926665889,-1000.0,0.00023288,30]
[361992771,1747926665899,-7382.0165825,0.000233,2]
[361992772,1747926665909,-314.54559427,0.000233,30]
[361992773,1747926665919,-5000.0,0.00023316,2]
[361992774,1747926665928,-398.54838117,0.00023321,2]
[361992775,1747926665937,-160.0,0.00023381,3]
[361992776,1747926665947,-800.0,0.000234,2]
[361992777,1747926665957,-687.21,0.00023424,11]
[361992778,1747926665966,-500.0,0.00023436,2]
[361992779,1747926665975,-500.0,0.00023436,2]
[361992780,1747926665985,-351.80132276,0.00023436,2]
[361992781,1747926665994,-500.0,0.00023436,2]
[361992782,1747926666004,-500.0,0.00023436,2]
[361992783,1747926666014,-4939.31440167,0.00023452,9]
[361992784,1747926666024,-159.05485592,0.00023452,2]
[361992785,1747926666033,-430.0,0.00023561,2]
[361992786,1747926666044,-430.0,0.00023561,2]
[361992787,1747926666054,-430.0,0.00023561,2]
[361992788,1747926666063,-609.44,0.00023561,2]
[361992789,1747926666072,-430.0,0.00023561,2]
[361992790,1747926666082,-430.0,0.00023561,2]
[361992791,1747926666092,-573.04,0.00023561,2]
[361992792,1747926666101,-430.0,0.00023561,2]
[361992793,1747926666111,-510.18,0.00023561,2]
[361992794,1747926666120,-430.0,0.00023561,2]
[361992795,1747926666130,-430.0,0.00023561,2]
[361992796,1747926666141,-430.0,0.00023561,2]
[361992798,1747926666151,-430.0,0.00023561,2]
[361992799,1747926666160,-430.0,0.00023561,2]
[361992800,1747926666170,-482.07,0.00023561,2]
[361992801,1747926666182,-457.95,0.00023561,2]
[361992802,1747926666191,-430.0,0.00023561,2]
[361992803,1747926666200,-1204.87,0.00023561,2]
[361992804,1747926666210,-701.17,0.00023561,2]
[361992805,1747926666219,-437.85,0.00023561,2]
[361992806,1747926666229,-473.75,0.00023561,2]
[361992807,1747926666239,-430.0,0.00023561,2]
[361992808,1747926666248,-1269.29,0.00023561,2]
[361992810,1747926666258,-430.0,0.00023561,2]
[361992812,1747926666268,-430.0,0.00023561,2]
[361992813,1747926666277,-430.0,0.00023561,2]
[361992814,1747926666286,-430.0,0.00023561,2]
[361992815,1747926666296,-430.0,0.00023561,2]
[361992816,1747926666305,-430.0,0.00023561,2]
[361992817,1747926666316,-1336.32,0.00023561,2]
[361992818,1747926666329,-430.0,0.00023561,2]
[361992819,1747926666339,-304.92,0.00023561,2]
[361992820,1747926666349,-2727.22,0.00023561,2]
[361992821,1747926666358,-520.87,0.00023561,2]
[361992822,1747926666368,-229.02889135,0.00023561,2]
[361992823,1747926666378,-715.26,0.00023561,2]
[361992824,1747926666388,-430.0,0.00023561,2]
[361992825,1747926666397,-3852.36,0.00023561,2]
[361992826,1747926666407,-1218.87,0.00023561,2]
[361992827,1747926666417,-1457.88,0.00023561,2]
[361992828,1747926666427,-430.0,0.00023561,2]
[361992829,1747926666437,-1348.45,0.00023561,2]